[Event "Titled Tuesday Blitz January 10 Late 2023"]
[White "Harish, Neeraj"]
[Black "Stanisz, Patryk"]
[WhiteFideId "30958130"]
[BlackFideId "1123106"]
[WhiteElo "2232"]
[BlackElo "2161"]
[Result "1-0"]
[Round "11"]
[TimeControl "180+2"]
[Date "2023.01.10"]
[WhiteClock "0:00:11"]
[BlackClock "0:00:12"]

1. e4 {[%clk 0:00:00]}  c5 {[%clk 0:00:00]} 2. Nf3 {[%clk 0:02:59]}  Nc6 {[%clk 0:02:59]} 3. d4 {[%clk 0:02:58]}  cxd4 {[%clk 0:02:59]} 4. Nxd4 {[%clk 0:02:58]}  Nf6 {[%clk 0:02:59]} 5. Nc3 {[%clk 0:02:59]}  e5 {[%clk 0:03:00]} 6. Ndb5 {[%clk 0:02:59]}  d6 {[%clk 0:03:00]} 7. Bg5 {[%clk 0:02:59]}  a6 {[%clk 0:03:00]} 8. Na3 {[%clk 0:02:59]}  b5 {[%clk 0:03:00]} 9. Nd5 {[%clk 0:02:59]}  Be7 {[%clk 0:03:01]} 10. Bxf6 {[%clk 0:02:59]}  Bxf6 {[%clk 0:03:00]} 11. c3 {[%clk 0:02:59]}  O-O {[%clk 0:03:01]} 12. Nc2 {[%clk 0:03:00]}  Bg5 {[%clk 0:03:00]} 13. a4 {[%clk 0:03:00]}  bxa4 {[%clk 0:03:01]} 14. Rxa4 {[%clk 0:02:59]}  a5 {[%clk 0:03:01]} 15. Bc4 {[%clk 0:02:59]}  Rb8 {[%clk 0:03:02]} 16. b3 {[%clk 0:02:58]}  Kh8 {[%clk 0:03:02]} 17. Nce3 {[%clk 0:02:58]}  g6 {[%clk 0:03:03]} 18. O-O {[%clk 0:02:49]}  f5 {[%clk 0:03:03]} 19. exf5 {[%clk 0:02:38]}  gxf5 {[%clk 0:03:02]} 20. Nc2 {[%clk 0:02:35]}  e4 {[%clk 0:03:02]} 21. f3 {[%clk 0:01:33]}  Bh6 {[%clk 0:02:43]} 22. fxe4 {[%clk 0:01:26]}  fxe4 {[%clk 0:02:19]} 23. Rxf8+ {[%clk 0:01:23]}  Qxf8 {[%clk 0:02:20]} 24. Nd4 {[%clk 0:01:15]}  Ne5 {[%clk 0:02:21]} 25. Rxa5 {[%clk 0:01:15]}  e3 {[%clk 0:02:20]} 26. Ra2 {[%clk 0:00:55]}  Bg4 {[%clk 0:01:50]} 27. Qe1 {[%clk 0:00:43]}  Nxc4 {[%clk 0:01:39]} 28. bxc4 {[%clk 0:00:37]}  Bf5 {[%clk 0:00:55]} 29. Nxf5 {[%clk 0:00:36]}  Qxf5 {[%clk 0:00:51]} 30. Ra1 {[%clk 0:00:19]}  Qe4 {[%clk 0:00:50]} 31. h3 {[%clk 0:00:19]}  Rb2 {[%clk 0:00:42]} 32. Ra8+ {[%clk 0:00:16]}  Kg7 {[%clk 0:00:35]} 33. Qg3+ {[%clk 0:00:12]}  Qg6 {[%clk 0:00:35]} 34. Ra7+ {[%clk 0:00:13]}  Kh8 {[%clk 0:00:27]} 35. Ra8+ {[%clk 0:00:11]}  Kg7 {[%clk 0:00:23]} 36. Rg8+ {[%clk 0:00:07]}  Kxg8 {[%clk 0:00:23]} 37. Ne7+ {[%clk 0:00:06]}  Kg7 {[%clk 0:00:20]} 38. Nxg6 {[%clk 0:00:06]}  hxg6 {[%clk 0:00:21]} 39. Qxd6 {[%clk 0:00:07]}  e2 {[%clk 0:00:15]} 40. Qe7+ {[%clk 0:00:06]}  Kg8 {[%clk 0:00:08]} 41. Kf2 {[%clk 0:00:07]}  Bg7 {[%clk 0:00:08]} 42. Qe8+ {[%clk 0:00:07]}  Kh7 {[%clk 0:00:02]} 43. Qe4 {[%clk 0:00:07]}  Bxc3 {[%clk 0:00:03]} 44. Qh4+ {[%clk 0:00:05]}  Kg7 {[%clk 0:00:03]} 45. Qe7+ {[%clk 0:00:04]}  Kh6 {[%clk 0:00:02]} 46. Qh4+ {[%clk 0:00:04]}  Kg7 {[%clk 0:00:02]} 47. Qe7+ {[%clk 0:00:04]}  Kg8 {[%clk 0:00:03]} 48. Qe8+ {[%clk 0:00:05]}  Kh7 {[%clk 0:00:04]} 49. Qe7+ {[%clk 0:00:05]}  Bg7 {[%clk 0:00:04]} 50. Qh4+ {[%clk 0:00:04]}  Kg8 {[%clk 0:00:05]} 51. Qd8+ {[%clk 0:00:05]}  Bf8 {[%clk 0:00:05]} 52. Qd5+ {[%clk 0:00:04]}  Kg7 {[%clk 0:00:06]} 53. Qd4+ {[%clk 0:00:04]}  Kh7 {[%clk 0:00:06]} 54. Qxb2 {[%clk 0:00:03]}  e1=Q+ {[%clk 0:00:05]} 55. Kxe1 {[%clk 0:00:04]}  Bg7 {[%clk 0:00:04]} 56. Qb7 {[%clk 0:00:03]}  Kh6 {[%clk 0:00:05]} 57. c5 {[%clk 0:00:03]}  Kh5 {[%clk 0:00:05]} 58. c6 {[%clk 0:00:03]}  g5 {[%clk 0:00:06]} 59. c7 {[%clk 0:00:04]}  Kh4 {[%clk 0:00:06]} 60. c8=Q {[%clk 0:00:05]}  Kg3 {[%clk 0:00:07]} 61. Qcd7 {[%clk 0:00:06]}  Kh2 {[%clk 0:00:08]} 62. Qxg7 {[%clk 0:00:07]}  Kh1 {[%clk 0:00:08]} 63. Qh7 {[%clk 0:00:07]}  g4 {[%clk 0:00:09]} 64. Qg6 {[%clk 0:00:08]}  g3 {[%clk 0:00:10]} 65. Qg4 {[%clk 0:00:09]}  Kg1 {[%clk 0:00:10]} 66. Qxg3 {[%clk 0:00:10]}  Kh1 {[%clk 0:00:11]} 67. Qh2+ {[%clk 0:00:11]}  Kxh2 {[%clk 0:00:12]} 68. Qc7+ {[%clk 0:00:11]}  Kg1 {[%clk 0:00:11]} 69. Ke2 {[%clk 0:00:12]}  Kh1 {[%clk 0:00:12]} 70. g4 {[%clk 0:00:12]}  Kg1 {[%clk 0:00:12]} 71. g5 {[%clk 0:00:11]} 1-0


[Site "https://www.chess.com"]

[Event "Titled Tuesday Blitz January 10 Late 2023"]
[White "Abdyzhaparov, Aidar"]
[Black "Lutz, Igor Oscar"]
[WhiteFideId "13800361"]
[BlackFideId "2110806"]
[WhiteElo "1978"]
[BlackElo "1969"]
[Result "1/2-1/2"]
[Round "11"]
[TimeControl "180+2"]
[Date "2023.01.10"]
[WhiteClock "0:00:13"]
[BlackClock "0:00:09"]

1. d4 {[%clk 0:00:00]}  Nf6 {[%clk 0:00:00]} 2. f3 {[%clk 0:02:53]}  d5 {[%clk 0:02:59]} 3. e4 {[%clk 0:02:53]}  dxe4 {[%clk 0:02:58]} 4. Nc3 {[%clk 0:02:53]}  exf3 {[%clk 0:02:58]} 5. Nxf3 {[%clk 0:02:52]}  Bg4 {[%clk 0:02:58]} 6. h3 {[%clk 0:02:53]}  Bh5 {[%clk 0:02:56]} 7. g4 {[%clk 0:02:53]}  Bg6 {[%clk 0:02:55]} 8. Ne5 {[%clk 0:02:53]}  Nbd7 {[%clk 0:02:54]} 9. Qf3 {[%clk 0:02:54]}  c6 {[%clk 0:02:48]} 10. g5 {[%clk 0:02:52]}  Nxe5 {[%clk 0:02:35]} 11. dxe5 {[%clk 0:02:52]}  Nd5 {[%clk 0:02:33]} 12. Nxd5 {[%clk 0:02:51]}  Qxd5 {[%clk 0:02:32]} 13. Qxd5 {[%clk 0:02:35]}  cxd5 {[%clk 0:02:29]} 14. Bb5+ {[%clk 0:02:35]}  Kd8 {[%clk 0:02:29]} 15. Ba4 {[%clk 0:02:35]}  Be4 {[%clk 0:02:29]} 16. O-O {[%clk 0:02:31]}  e6 {[%clk 0:02:20]} 17. Rxf7 {[%clk 0:02:28]}  Bc5+ {[%clk 0:02:19]} 18. Kh2 {[%clk 0:02:27]}  Rf8 {[%clk 0:02:17]} 19. Rxf8+ {[%clk 0:02:23]}  Bxf8 {[%clk 0:02:11]} 20. Be3 {[%clk 0:02:17]}  a6 {[%clk 0:02:10]} 21. Rf1 {[%clk 0:02:12]}  Bf5 {[%clk 0:01:59]} 22. Bb6+ {[%clk 0:02:11]}  Ke7 {[%clk 0:01:46]} 23. Rf3 {[%clk 0:02:04]}  Rc8 {[%clk 0:01:35]} 24. Rc3 {[%clk 0:01:32]}  Rxc3 {[%clk 0:01:28]} 25. bxc3 {[%clk 0:01:31]}  Kf7 {[%clk 0:01:27]} 26. Kg3 {[%clk 0:01:32]}  Be7 {[%clk 0:01:20]} 27. h4 {[%clk 0:01:29]}  Ba3 {[%clk 0:01:10]} 28. Kf4 {[%clk 0:01:23]}  Ke7 {[%clk 0:01:09]} 29. Be3 {[%clk 0:01:11]}  b5 {[%clk 0:00:58]} 30. Bb3 {[%clk 0:00:59]}  Bb2 {[%clk 0:00:51]} 31. Bd2 {[%clk 0:00:59]}  Ba3 {[%clk 0:00:50]} 32. h5 {[%clk 0:00:50]}  a5 {[%clk 0:00:46]} 33. h6 {[%clk 0:00:42]}  g6 {[%clk 0:00:42]} 34. Be3 {[%clk 0:00:32]}  a4 {[%clk 0:00:37]} 35. Bd2 {[%clk 0:00:27]}  axb3 {[%clk 0:00:35]} 36. cxb3 {[%clk 0:00:28]}  Bb1 {[%clk 0:00:34]} 37. b4 {[%clk 0:00:28]}  Bxa2 {[%clk 0:00:32]} 38. Ke3 {[%clk 0:00:25]}  Bc4 {[%clk 0:00:28]} 39. Kd4 {[%clk 0:00:23]}  Bb2 {[%clk 0:00:23]} 40. Kc5 {[%clk 0:00:23]}  Kd7 {[%clk 0:00:20]} 41. Kd4 {[%clk 0:00:22]}  Kc6 {[%clk 0:00:18]} 42. Be3 {[%clk 0:00:19]}  Ba3 {[%clk 0:00:18]} 43. Bd2 {[%clk 0:00:17]}  Bb2 {[%clk 0:00:16]} 44. Be3 {[%clk 0:00:17]}  Kb6 {[%clk 0:00:16]} 45. Bd2 {[%clk 0:00:17]}  Bf1 {[%clk 0:00:11]} 46. Be3 {[%clk 0:00:15]}  Bc4 {[%clk 0:00:09]} 47. Bd2 {[%clk 0:00:14]}  Ba1 {[%clk 0:00:09]} 48. Be3 {[%clk 0:00:13]}  Kc6 {[%clk 0:00:09]} 49. Bd2 {[%clk 0:00:13]}  Bb2 {[%clk 0:00:09]} 1/2-1/2


[Site "https://www.chess.com"]

[Event "Titled Tuesday Blitz January 10 Late 2023"]
[White "Thiel, Thomas"]
[Black "ritanovikova"]
[WhiteFideId "4615964"]
[WhiteElo "2234"]
[BlackElo "2115"]
[Result "0-1"]
[Round "11"]
[TimeControl "180+2"]
[Date "2023.01.10"]
[WhiteClock "0:01:03"]
[BlackClock "0:00:56"]

1. e4 {[%clk 0:00:00]}  d5 {[%clk 0:00:00]} 2. exd5 {[%clk 0:03:00]}  Qxd5 {[%clk 0:02:48]} 3. Nc3 {[%clk 0:02:59]}  Qd6 {[%clk 0:02:48]} 4. d4 {[%clk 0:02:57]}  Nf6 {[%clk 0:02:47]} 5. Nf3 {[%clk 0:02:55]}  a6 {[%clk 0:02:47]} 6. g3 {[%clk 0:02:55]}  Bg4 {[%clk 0:02:36]} 7. Bg2 {[%clk 0:02:52]}  e6 {[%clk 0:02:35]} 8. O-O {[%clk 0:02:52]}  Nc6 {[%clk 0:02:35]} 9. h3 {[%clk 0:02:50]}  Bxf3 {[%clk 0:02:32]} 10. Bxf3 {[%clk 0:02:49]}  Nxd4 {[%clk 0:02:26]} 11. Bxb7 {[%clk 0:02:48]}  Rb8 {[%clk 0:02:25]} 12. Bg2 {[%clk 0:02:46]}  Qb6 {[%clk 0:02:25]} 13. Be3 {[%clk 0:02:35]}  c5 {[%clk 0:02:21]} 14. b3 {[%clk 0:02:26]}  Be7 {[%clk 0:02:19]} 15. Na4 {[%clk 0:02:26]}  Qa7 {[%clk 0:02:16]} 16. c3 {[%clk 0:02:22]}  Nf5 {[%clk 0:02:11]} 17. Qe2 {[%clk 0:02:20]}  Nxe3 {[%clk 0:02:08]} 18. Qxe3 {[%clk 0:02:11]}  O-O {[%clk 0:02:06]} 19. Rfd1 {[%clk 0:02:12]}  Rfd8 {[%clk 0:02:05]} 20. Bf3 {[%clk 0:02:07]}  Nd5 {[%clk 0:02:02]} 21. Bxd5 {[%clk 0:02:03]}  exd5 {[%clk 0:02:00]} 22. Qf3 {[%clk 0:02:01]}  d4 {[%clk 0:02:01]} 23. cxd4 {[%clk 0:01:58]}  cxd4 {[%clk 0:01:57]} 24. Rd3 {[%clk 0:01:56]}  Bf6 {[%clk 0:01:58]} 25. Rad1 {[%clk 0:01:54]}  h6 {[%clk 0:01:56]} 26. Nb2 {[%clk 0:01:51]}  Qc5 {[%clk 0:01:51]} 27. Nc4 {[%clk 0:01:50]}  a5 {[%clk 0:01:41]} 28. Nd2 {[%clk 0:01:49]}  Qb4 {[%clk 0:01:40]} 29. Ne4 {[%clk 0:01:42]}  Be5 {[%clk 0:01:33]} 30. Qf5 {[%clk 0:01:41]}  Re8 {[%clk 0:01:33]} 31. Kg2 {[%clk 0:01:40]}  Rb5 {[%clk 0:01:29]} 32. Qd7 {[%clk 0:01:29]}  Re7 {[%clk 0:01:27]} 33. Qd8+ {[%clk 0:01:27]}  Kh7 {[%clk 0:01:23]} 34. Rf3 {[%clk 0:01:25]}  Bc7 {[%clk 0:01:22]} 35. Qa8 {[%clk 0:01:22]}  Rb7 {[%clk 0:01:17]} 36. Nc5 {[%clk 0:01:17]}  Rb8 {[%clk 0:01:16]} 37. Qc6 {[%clk 0:01:07]}  Bb6 {[%clk 0:01:07]} 38. Nd3 {[%clk 0:01:04]}  Qc3 {[%clk 0:00:59]} 39. Nf4 {[%clk 0:01:03]}  Qxc6 {[%clk 0:00:56]} 0-1


[Site "https://www.chess.com"]

[Event "Titled Tuesday Blitz January 10 Late 2023"]
[White "Kovacevic, Radmila"]
[Black "Garcia, Gabriel Gonzaga"]
[WhiteFideId "933171"]
[BlackFideId "2138956"]
[WhiteElo "2106"]
[BlackElo "2091"]
[Result "0-1"]
[Round "11"]
[TimeControl "180+2"]
[Date "2023.01.10"]
[WhiteClock "0:00:06"]
[BlackClock "0:01:51"]

1. e4 {[%clk 0:00:00]}  c6 {[%clk 0:00:00]} 2. d4 {[%clk 0:02:56]}  d5 {[%clk 0:03:00]} 3. exd5 {[%clk 0:02:55]}  cxd5 {[%clk 0:03:00]} 4. c4 {[%clk 0:02:55]}  Nf6 {[%clk 0:03:01]} 5. Nc3 {[%clk 0:02:56]}  Nc6 {[%clk 0:03:01]} 6. cxd5 {[%clk 0:02:56]}  Nxd5 {[%clk 0:03:01]} 7. Nf3 {[%clk 0:02:51]}  Bg4 {[%clk 0:03:02]} 8. Bc4 {[%clk 0:02:49]}  e6 {[%clk 0:03:02]} 9. Bxd5 {[%clk 0:02:49]}  exd5 {[%clk 0:02:57]} 10. Qb3 {[%clk 0:02:26]}  Bxf3 {[%clk 0:02:58]} 11. Qxb7 {[%clk 0:02:26]}  Nxd4 {[%clk 0:02:56]} 12. gxf3 {[%clk 0:02:25]}  Qe7+ {[%clk 0:02:25]} 13. Qxe7+ {[%clk 0:02:19]}  Bxe7 {[%clk 0:02:20]} 14. O-O {[%clk 0:02:16]}  Nxf3+ {[%clk 0:02:21]} 15. Kh1 {[%clk 0:01:57]}  O-O-O {[%clk 0:02:21]} 16. Bf4 {[%clk 0:01:55]}  Kb7 {[%clk 0:02:17]} 17. Rad1 {[%clk 0:01:45]}  d4 {[%clk 0:02:13]} 18. Ne4 {[%clk 0:01:41]}  f5 {[%clk 0:02:10]} 19. Ng3 {[%clk 0:01:24]}  g5 {[%clk 0:02:10]} 20. Nxf5 {[%clk 0:01:17]}  gxf4 {[%clk 0:02:09]} 21. Nxe7 {[%clk 0:01:15]}  Rhe8 {[%clk 0:02:03]} 22. Nf5 {[%clk 0:01:14]}  d3 {[%clk 0:02:00]} 23. Kg2 {[%clk 0:01:00]}  Ne5 {[%clk 0:02:00]} 24. f3 {[%clk 0:00:57]}  Nc4 {[%clk 0:01:59]} 25. Rfe1 {[%clk 0:00:51]}  Rxe1 {[%clk 0:01:54]} 26. Rxe1 {[%clk 0:00:28]}  d2 {[%clk 0:01:53]} 27. Rd1 {[%clk 0:00:28]}  Nxb2 {[%clk 0:01:54]} 28. Rb1 {[%clk 0:00:20]}  d1=Q {[%clk 0:01:54]} 29. Rxb2+ {[%clk 0:00:18]}  Kc7 {[%clk 0:01:54]} 30. Rf2 {[%clk 0:00:14]}  Rd2 {[%clk 0:01:50]} 31. Nh4 {[%clk 0:00:09]}  Rxf2+ {[%clk 0:01:50]} 32. Kxf2 {[%clk 0:00:07]}  Qd2+ {[%clk 0:01:49]} 33. Kg1 {[%clk 0:00:08]}  Qxa2 {[%clk 0:01:50]} 34. Ng2 {[%clk 0:00:08]}  Qd2 {[%clk 0:01:51]} 35. Kf1 {[%clk 0:00:06]}  a5 {[%clk 0:01:49]} 36. h4 {[%clk 0:00:06]}  a4 {[%clk 0:01:49]} 37. h5 {[%clk 0:00:06]}  a3 {[%clk 0:01:49]} 38. h6 {[%clk 0:00:06]}  a2 {[%clk 0:01:50]} 39. Ne1 {[%clk 0:00:06]}  a1=Q {[%clk 0:01:51]} 40. Kg1 {[%clk 0:00:06]}  Qaxe1# {[%clk 0:01:51]} 0-1


[Site "https://www.chess.com"]

[Event "Titled Tuesday Blitz January 10 Late 2023"]
[White "Riverol, Jose"]
[Black "Thomas, Anysia"]
[WhiteFideId "3000427"]
[BlackFideId "670472"]
[WhiteElo "2304"]
[BlackElo "2147"]
[Result "0-1"]
[Round "11"]
[TimeControl "180+2"]
[Date "2023.01.10"]
[WhiteClock "0:00:25"]
[BlackClock "0:01:17"]

1. d4 {[%clk 0:00:00]}  Nf6 {[%clk 0:00:00]} 2. c4 {[%clk 0:03:00]}  g6 {[%clk 0:02:57]} 3. Nc3 {[%clk 0:03:00]}  d5 {[%clk 0:02:58]} 4. Nf3 {[%clk 0:03:00]}  Bg7 {[%clk 0:02:58]} 5. Bg5 {[%clk 0:03:00]}  Ne4 {[%clk 0:02:57]} 6. Bh4 {[%clk 0:03:00]}  Nxc3 {[%clk 0:02:57]} 7. bxc3 {[%clk 0:03:00]}  c5 {[%clk 0:02:57]} 8. e3 {[%clk 0:03:01]}  O-O {[%clk 0:02:53]} 9. cxd5 {[%clk 0:02:58]}  cxd4 {[%clk 0:02:53]} 10. cxd4 {[%clk 0:02:57]}  Qxd5 {[%clk 0:02:53]} 11. Qb3 {[%clk 0:02:54]}  Qa5+ {[%clk 0:02:53]} 12. Nd2 {[%clk 0:02:48]}  Nc6 {[%clk 0:02:46]} 13. Rb1 {[%clk 0:02:48]}  Be6 {[%clk 0:02:44]} 14. Bc4 {[%clk 0:01:48]}  Bxc4 {[%clk 0:02:28]} 15. Qxc4 {[%clk 0:01:12]}  Rac8 {[%clk 0:02:17]} 16. Qb5 {[%clk 0:01:13]}  Qc3 {[%clk 0:02:17]} 17. Qb3 {[%clk 0:00:55]}  Qa5 {[%clk 0:02:09]} 18. Qb5 {[%clk 0:00:43]}  Qxa2 {[%clk 0:01:46]} 19. Rb2 {[%clk 0:00:42]}  Qa1+ {[%clk 0:01:44]} 20. Rb1 {[%clk 0:00:41]}  Qc3 {[%clk 0:01:36]} 21. Qb3 {[%clk 0:00:40]}  Qxb3 {[%clk 0:01:32]} 22. Rxb3 {[%clk 0:00:33]}  b6 {[%clk 0:01:23]} 23. Ke2 {[%clk 0:00:31]}  e6 {[%clk 0:01:23]} 24. Rc1 {[%clk 0:00:29]}  Nxd4+ {[%clk 0:01:21]} 25. exd4 {[%clk 0:00:25]}  Rxc1 {[%clk 0:01:17]} 26. Ra3 {[%clk 0:00:25]}  a5 {[%clk 0:01:17]} 0-1


[Site "https://www.chess.com"]

[Event "Titled Tuesday Blitz January 10 Late 2023"]
[White "Kho, Darrell"]
[Black "Martinez, Shawn"]
[WhiteFideId "1019317"]
[BlackFideId "2039770"]
[WhiteElo "2075"]
[BlackElo "1881"]
[Result "1-0"]
[Round "11"]
[TimeControl "180+2"]
[Date "2023.01.10"]
[WhiteClock "0:00:15"]
[BlackClock "0:00:04"]

1. e4 {[%clk 0:00:00]}  c6 {[%clk 0:00:00]} 2. Nc3 {[%clk 0:03:00]}  d5 {[%clk 0:02:24]} 3. Nf3 {[%clk 0:02:58]}  dxe4 {[%clk 0:02:22]} 4. Nxe4 {[%clk 0:02:58]}  Nf6 {[%clk 0:02:21]} 5. Qe2 {[%clk 0:02:58]}  e6 {[%clk 0:02:19]} 6. d4 {[%clk 0:02:58]}  Nbd7 {[%clk 0:02:10]} 7. Bf4 {[%clk 0:02:34]}  Nxe4 {[%clk 0:02:06]} 8. Qxe4 {[%clk 0:02:28]}  Nf6 {[%clk 0:01:32]} 9. Qd3 {[%clk 0:02:26]}  Bd6 {[%clk 0:01:32]} 10. Ne5 {[%clk 0:02:25]}  O-O {[%clk 0:01:30]} 11. O-O-O {[%clk 0:02:24]}  Nd5 {[%clk 0:01:29]} 12. Bd2 {[%clk 0:02:17]}  Bxe5 {[%clk 0:01:18]} 13. dxe5 {[%clk 0:02:08]}  b5 {[%clk 0:01:03]} 14. Qe4 {[%clk 0:02:07]}  f5 {[%clk 0:00:52]} 15. exf6 {[%clk 0:02:05]}  Qxf6 {[%clk 0:00:36]} 16. Bd3 {[%clk 0:02:03]}  g6 {[%clk 0:00:36]} 17. h4 {[%clk 0:01:57]}  Qf5 {[%clk 0:00:36]} 18. f3 {[%clk 0:01:47]}  Qxe4 {[%clk 0:00:24]} 19. Bxe4 {[%clk 0:01:15]}  Bd7 {[%clk 0:00:21]} 20. h5 {[%clk 0:01:15]}  Kg7 {[%clk 0:00:20]} 21. Bc3+ {[%clk 0:01:15]}  Kf7 {[%clk 0:00:19]} 22. hxg6+ {[%clk 0:01:03]}  hxg6 {[%clk 0:00:12]} 23. Rh7+ {[%clk 0:01:02]}  Ke8 {[%clk 0:00:12]} 24. Bxg6+ {[%clk 0:01:01]}  Kd8 {[%clk 0:00:11]} 25. Be5 {[%clk 0:00:55]}  a5 {[%clk 0:00:11]} 26. b3 {[%clk 0:00:39]}  a4 {[%clk 0:00:09]} 27. c4 {[%clk 0:00:34]}  axb3 {[%clk 0:00:09]} 28. cxd5 {[%clk 0:00:32]}  bxa2 {[%clk 0:00:08]} 29. dxe6 {[%clk 0:00:29]}  a1=Q+ {[%clk 0:00:04]} 30. Bxa1 {[%clk 0:00:15]}  Rxa1+ {[%clk 0:00:04]} 31. Bb1 {[%clk 0:00:15]} 1-0